fUSD/lending_fUSD_20250930
["ID","MTS","AMOUNT","RATE_DAILY","PERIOD"]
[388506948,1759222271565,-500.0,0.00020044,2]
[388506949,1759222271574,-3497.09,0.00020044,2]
[388506950,1759222271583,-879.95,0.00020044,2]
[388506951,1759222271592,-580.67,0.00020044,2]
[388506952,1759222271602,-500.0,0.00020044,2]
[388506953,1759222271612,-1148.39,0.00020044,2]
[388506954,1759222271621,-1966.99,0.00020044,2]
[388506955,1759222271631,-1733.89,0.00020044,2]
[388506956,1759222271641,-661.28,0.00020044,2]
[388506957,1759222271651,-1278.65,0.00020044,2]
[388506958,1759222271660,-500.0,0.00020044,2]
[388506959,1759222271670,-6099.28,0.00020044,2]
[388506960,1759222271679,-1277.86,0.00020044,2]
[388506961,1759222271689,-1527.18,0.00020044,2]
[388506962,1759222271698,-740.9,0.00020044,2]
[388506963,1759222271707,-500.0,0.00020044,2]
[388506964,1759222271717,-1423.79,0.00020044,2]
[388506965,1759222271726,-309.27699262,0.00020044,2]
[388506966,1759222271738,-1053.75300738,0.00020044,2]
[388506967,1759222271747,-686.8,0.00020044,2]
[388506968,1759222271756,-988.28,0.00020044,2]
[388506969,1759222271767,-4563.86,0.00020044,2]
[388506970,1759222271778,-7199.64,0.00020044,2]
[388506971,1759222271788,-1522.74,0.00020044,2]
[388506972,1759222271797,-549.21,0.00020044,2]
[388506973,1759222271806,-500.0,0.00020044,2]
[388506974,1759222271817,-500.0,0.00020044,2]
[388506975,1759222271827,-2496.10537332,0.00020044,2]
[388506976,1759222271839,-539.66462668,0.00020044,2]
[388506977,1759222271850,-522.74,0.00020044,2]
[388506978,1759222271860,-7141.69,0.00020044,2]
[388506979,1759222271869,-500.0,0.00020044,2]
[388506980,1759222271878,-500.0,0.00020044,2]
[388506981,1759222271888,-1605.52,0.00020044,2]
[388506982,1759222271897,-500.0,0.00020044,2]
[388506983,1759222271908,-500.0,0.00020044,2]
[388506984,1759222271917,-3531.01,0.00020044,2]
[388506985,1759222271926,-500.0,0.00020044,2]
[388506986,1759222271936,-3012.53,0.00020044,2]
[388506987,1759222271946,-1199.9,0.00020044,2]
[388506988,1759222271955,-500.0,0.00020044,2]
[388506989,1759222271964,-500.0,0.00020044,2]
[388506990,1759222271975,-1507.42,0.00020044,2]
[388506991,1759222271984,-7626.0,0.00020044,2]
[388506992,1759222271994,-500.0,0.00020044,2]
[388506993,1759222272003,-500.0,0.00020044,2]
[388506994,1759222272013,-1906.23,0.00020044,2]
[388506995,1759222272022,-501.43,0.00020044,2]
[388506996,1759222272031,-1067.89,0.00020044,2]
[388506997,1759222272040,-979.93,0.00020044,2]
[388506998,1759222272049,-500.0,0.00020044,2]
[388506999,1759222272059,-9207.51,0.00020044,2]
[388507000,1759222272068,-1665.15,0.00020044,2]
[388507001,1759222272077,-823.09,0.00020044,2]
[388507002,1759222272086,-903.06,0.00020044,2]
[388507003,1759222272096,-6534.64,0.00020044,2]
[388507004,1759222272105,-4631.61027439,0.00020044,2]
[388507409,1759223134923,172.42,9.146e-05,2]
[388507410,1759223135134,172.42,0.00013719,2]
[388507517,1759223431793,-165.12,0.00016712,2]
[388507519,1759223431804,-250.0,0.00017,2]
[388507521,1759223431813,-222.48213874,0.00017363,2]
[388507523,1759223431822,-222.48213874,0.00017381,2]
[388507525,1759223431832,-143.69637793,0.00017391,2]
[388507528,1759223431851,-78.78576081,0.00017391,2]
[388507530,1759223431860,-222.48213874,0.00017404,2]
[388507532,1759223431869,-114.00971469,0.00017445,2]
[388507534,1759223431880,-108.47242405,0.00017445,2]
[388507536,1759223431889,-222.48213874,0.00017487,2]
[388507538,1759223431898,-124.50065009,0.00017494,2]
[388507540,1759223431911,-97.98148865,0.00017494,2]
[388507542,1759223431920,-150.0,0.00017778,2]
[388507544,1759223431929,-62.97751499,0.00017778,2]
[388507547,1759223431946,-87.02248501,0.00017778,2]
[388507549,1759223431955,-150.05,0.00018105,2]
[388507551,1759223431964,-704.03801051,0.00018105,2]
[388507553,1759223431973,-4113.0,0.00018262,2]
[388507555,1759223431982,-6220.0,0.00018262,2]
[388507557,1759223431992,-192.27,0.00018286,2]
[388507559,1759223432001,-172.42,0.00018291,2]
[388507561,1759223432011,-1425.56,0.00018532,2]
[388507563,1759223432020,-1803.95,0.000186,7]
[388507565,1759223432029,-164.32,0.0001867,2]
[388507567,1759223432038,-200.0,0.000187,6]
[388507569,1759223432047,-474.52590314,0.00018733,2]
[388507571,1759223432057,-150.0,0.00018735,2]
[388507573,1759223432066,-150.0,0.00018735,2]
[388507575,1759223432075,-1200.0,0.00018739,2]
[388507578,1759223432084,-1180.0,0.0001874,2]
[388507580,1759223432096,-902.026,0.0001874,2]
[388507582,1759223432105,-4235.0,0.0001874,2]
[388507584,1759223432115,-5757.0,0.00018766,2]
[388507586,1759223432124,-500.0,0.000188,6]
[388507588,1759223432133,-700.0,0.000189,6]
[388507590,1759223432142,-500.0,0.00018986,2]
[388507592,1759223432153,-1486.12978389,0.0001909,2]
[388507596,1759223432165,-6479.28074879,0.0001909,2]
[388507599,1759223432174,-266.47528178,0.0001909,2]
[388507602,1759223432183,-8260.13072239,0.00019145,2]
[388507605,1759223432192,-151.0,0.00019178,2]
[388507608,1759223432201,-8565.75555911,0.000192,2]
[388507610,1759223432210,-8882.6885148,0.00019255,2]
[388507612,1759223432219,-12185.1293555,0.00019296,2]
[388507614,1759223432228,-2252.8907114,0.0001931,2]
[388507616,1759223432237,-12185.12935546,0.00019368,2]
[388507618,1759223432246,-469.83,0.0001937,2]
[388507620,1759223432256,-1600.98,0.0001937,2]
[388507621,1759223432265,-1000.0,0.00019384,2]
[388507623,1759223432274,-314.73965905,0.00019384,2]
[388507624,1759223432283,-322.6107,0.00019384,2]
[388507625,1759223432293,-668.90931902,0.00019384,2]
[388507626,1759223432303,-157.86156466,0.00019394,2]
[388507627,1759223432312,-3794.00049037,0.00019394,2]
[388507628,1759223432322,-297.86185733,0.00019395,2]
[388507629,1759223432331,-1282.60191645,0.00019395,2]
[388507630,1759223432341,-5000.0,0.00019395,2]
[388507631,1759223432350,-20783.93582925,0.00019396,2]
[388507632,1759223432362,-509.86,0.00019396,2]
[388507633,1759223432385,-287.8619546,0.00019396,2]
[388507634,1759223432404,-49673.31742047,0.00019396,2]
[388507635,1759223432415,-958.01119287,0.00019396,2]
[388507636,1759223432531,-291.98779299,0.00019396,2]
[388507642,1759223437659,-1803.95,0.000186,7]
[388507643,1759223437670,-1122.8,0.00019396,2]
[388507644,1759223437698,-1663.25974346,0.00019396,2]
[388507645,1759223437712,-653.2542631,0.00019396,2]
[388507646,1759223437723,-13741.06670326,0.00019396,2]
[388507647,1759223437733,-159.67638571,0.00019396,2]
[388507648,1759223437742,-415.52,0.00019429,2]
[388507649,1759223437752,-12185.12935546,0.0001944,2]
[388507650,1759223437761,-3794.00049035,0.00019455,2]
[388507651,1759223437771,-500.0,0.00019473,2]
[388507652,1759223437782,-500.0,0.00019473,2]
[388507653,1759223437792,-500.0,0.00019473,2]
[388507654,1759223437802,-415.52,0.00019482,2]
[388507655,1759223437812,-5639.14,0.00019482,2]
[388507656,1759223437821,-415.52,0.00019483,2]
[388507657,1759223437830,-415.52,0.00019483,2]
[388507658,1759223437840,-415.52,0.00019483,2]
[388507659,1759223437849,-5639.14,0.00019483,2]
[388507660,1759223437859,-247.12912845,0.00019484,2]
[388507661,1759223437868,-247.28115479,0.00019491,2]
[388507662,1759223437877,-229.65387429,0.00019492,2]
[388507663,1759223437886,-2130.46,0.00019492,2]
[388507664,1759223437895,-4373.74,0.00019492,2]
[388507665,1759223437905,-3092.97,0.00019492,2]
[388507666,1759223437915,-7787.39,0.00019492,2]
[388507667,1759223437925,-1401.9,0.00019492,2]
[388507668,1759223437934,-1627.6,0.00019492,2]
[388507669,1759223437943,-500.0,0.00019492,2]
[388507670,1759223437953,-2238.6,0.00019492,2]
[388507671,1759223437963,-500.0,0.00019492,2]
[388507672,1759223437972,-1317.8,0.00019492,2]
[388507673,1759223437982,-694.58,0.00019492,2]
[388507675,1759223437992,-949.07,0.00019492,2]
[388507677,1759223438002,-500.0,0.00019492,2]
[388507678,1759223438011,-2750.54,0.00019492,2]
[388507680,1759223438021,-4407.34,0.00019492,2]
[388507682,1759223438032,-6507.64,0.00019492,2]
[388507684,1759223438042,-500.0,0.00019492,2]
[388507686,1759223438052,-529.09,0.00019492,2]
[388507688,1759223438062,-611.13,0.00019492,2]
[388507690,1759223438072,-2689.25,0.00019492,2]
[388507692,1759223438082,-1818.06,0.00019492,2]
[388507694,1759223438092,-1052.58,0.00019492,2]
[388507696,1759223438101,-500.0,0.00019492,2]
[388507697,1759223438111,-1777.17,0.00019492,2]
[388507699,1759223438120,-977.05,0.00019492,2]
[388507701,1759223438130,-500.0,0.00019492,2]
[388507703,1759223438140,-15079.69,0.00019492,2]
[388507705,1759223438149,-9557.11,0.00019492,2]
[388507707,1759223438159,-630.21,0.00019492,2]
[388507709,1759223438168,-500.0,0.00019492,2]
[388507711,1759223438177,-500.0,0.00019492,2]
[388507713,1759223438187,-6630.78,0.00019492,2]
[388507715,1759223438197,-500.0,0.00019492,2]
[388507717,1759223438206,-1025.32,0.00019492,2]
[388507718,1759223438215,-500.0,0.00019492,2]
[388507720,1759223438225,-4735.57,0.00019492,2]
[388507722,1759223438234,-4144.26,0.00019492,2]
[388507724,1759223438244,-2506.36,0.00019492,2]
[388507726,1759223438254,-2506.36,0.00019492,2]
[388507728,1759223438263,-500.0,0.00019492,2]
[388507729,1759223438273,-3812.7,0.00019492,2]
[388507730,1759223438283,-3945.27,0.00019492,2]
[388507731,1759223438293,-5950.08,0.00019492,2]
[388507732,1759223438303,-500.0,0.00019492,2]
[388507733,1759223438312,-4414.5,0.00019492,2]
[388507734,1759223438321,-1379.56,0.00019492,2]
[388507735,1759223438331,-11054.141627,0.00019492,2]
[388507736,1759223438340,-532.878419,0.00019492,2]
[388507737,1759223438351,-1641.12,0.00019493,2]
[388507738,1759223438360,-503.15,0.00019493,2]
[388507739,1759223438370,-500.0,0.00019493,2]
[388507740,1759223438379,-568.17,0.00019493,2]
[388507741,1759223438390,-169.46241017,0.00019493,2]
[388507742,1759223438400,-500.0,0.00019493,2]
[388507743,1759223438410,-304.9263398,0.00019493,2]
[388507744,1759223438419,-772.57,0.00019493,2]
[388507745,1759223438428,-500.0,0.00019493,2]
[388507746,1759223438438,-278.19633456,0.00019493,2]
[388507747,1759223438447,-1147.75,0.00019493,2]
[388507748,1759223438457,-500.0,0.00019493,2]
[388507749,1759223438467,-500.0,0.00019493,2]
[388507750,1759223438476,-1233.76,0.00019493,2]
[388507751,1759223438485,-440.79455151,0.00019493,2]
[388507752,1759223438495,-581.73937965,0.00019493,2]
[388507753,1759223438505,-595.48,0.00019493,2]
[388507754,1759223438515,-500.0,0.00019493,2]
[388507755,1759223438527,-721.68,0.00019493,2]
[388507756,1759223438536,-500.0,0.00019493,2]
[388507757,1759223438546,-500.0,0.00019493,2]
[388507758,1759223438555,-1368.63,0.00019493,2]
[388507759,1759223438565,-500.0,0.00019493,2]
[388507760,1759223438575,-817.37,0.00019493,2]
[388507761,1759223438584,-642.03,0.00019493,2]
[388507762,1759223438594,-500.0,0.00019493,2]
[388507763,1759223438604,-500.0,0.00019493,2]
[388507764,1759223438615,-197.78637745,0.00019493,2]
[388507765,1759223438627,-500.0,0.00019493,2]
[388507766,1759223438636,-500.0,0.00019493,2]
[388507767,1759223438646,-500.0,0.00019493,2]
[388507768,1759223438656,-854.72,0.00019493,2]
[388507769,1759223438665,-1513.61,0.00019493,2]
[388507770,1759223438675,-522.53,0.00019493,2]
[388507771,1759223438684,-3425.57,0.00019493,2]
[388507772,1759223438694,-2693.29,0.00019493,2]
[388507773,1759223438703,-762.82,0.00019493,2]
[388507774,1759223438715,-626.3,0.00019493,2]
[388507775,1759223438726,-897.02,0.00019493,2]
[388507776,1759223438736,-500.0,0.00019493,2]
[388507777,1759223438747,-1088.68,0.00019493,2]
[388507778,1759223438757,-2451.8,0.00019493,2]
[388507779,1759223438767,-774.29,0.00019493,2]
[388507780,1759223438777,-9380.712369,0.00019493,2]
[388507781,1759223438787,-3934.84,0.00019493,2]
[388507782,1759223438798,-3125.34,0.00019493,2]
[388507783,1759223438808,-1550.93,0.00019493,2]
[388507784,1759223438818,-4370.92,0.00019493,2]
[388507785,1759223438828,-500.0,0.00019493,2]
[388507786,1759223438837,-3055.26,0.00019493,2]
[388507787,1759223438847,-500.0,0.00019493,2]
[388507788,1759223438857,-6355.82,0.00019493,2]
[388507789,1759223438866,-3788.57,0.00019493,2]
[388507790,1759223438877,-500.0,0.00019493,2]
[388507791,1759223438886,-500.0,0.00019493,2]
[388507792,1759223438896,-500.0,0.00019493,2]
[388507793,1759223438906,-3787.36,0.00019493,2]
[388507794,1759223438916,-504.14,0.00019493,2]
[388507795,1759223438926,-1319.39,0.00019493,2]
[388507796,1759223438935,-5922.28,0.00019493,2]
[388507797,1759223438945,-3878.02,0.00019493,2]
[388507798,1759223438955,-4139.95,0.00019493,2]
[388507799,1759223438965,-500.0,0.00019493,2]
[388507800,1759223438975,-5351.89,0.00019493,2]
[388507801,1759223438984,-3984.96,0.00019493,2]
[388507802,1759223439463,-2163.47,0.00019493,2]
[388507803,1759223439474,-8524.54,0.00019493,2]
[388507804,1759223439483,-942.65,0.00019493,2]
[388507805,1759223439493,-500.0,0.00019493,2]
[388507806,1759223439503,-19842.33,0.00019493,2]
[388507807,1759223439512,-1154.06,0.00019493,2]
[388507808,1759223439521,-7382.97,0.00019493,2]
[388507809,1759223439531,-3427.41,0.00019493,2]
[388507810,1759223439541,-874.02,0.00019493,2]
[388507811,1759223439550,-6514.79,0.00019493,2]
[388507812,1759223439560,-4074.47,0.00019493,2]
[388507813,1759223439570,-676.25,0.00019493,2]
[388507814,1759223439580,-500.0,0.00019493,2]
[388507815,1759223439591,-3157.7,0.00019493,2]
[388507816,1759223439601,-1907.25,0.00019493,2]
[388507817,1759223439611,-592.71,0.00019493,2]
[388507818,1759223439625,-1517.15,0.00019493,2]
[388507819,1759223439635,-5336.87,0.00019493,2]
[388507820,1759223439644,-1118.13,0.00019493,2]
[388507821,1759223439654,-1192.66,0.00019493,2]
[388507822,1759223439668,-6037.2,0.00019493,2]
[388507823,1759223439677,-3993.38,0.00019493,2]
[388507825,1759223439688,-500.0,0.00019493,2]
[388507827,1759223439699,-6248.97,0.00019493,2]
[388507828,1759223439709,-3089.63,0.00019493,2]
[388507829,1759223439719,-500.0,0.00019493,2]
[388507830,1759223439728,-824.36,0.00019493,2]
[388507831,1759223439737,-500.0,0.00019494,2]
[388507832,1759223439747,-500.0,0.00019494,2]
[388507833,1759223439756,-1781.53,0.00019494,2]
[388507834,1759223439766,-530.97,0.00019494,2]
[388507835,1759223439775,-500.0,0.00019494,2]
[388507836,1759223439785,-516.35,0.00019494,2]
[388507837,1759223439795,-1094.38,0.00019494,2]
[388507838,1759223439804,-500.0,0.00019494,2]
[388507839,1759223439814,-1186.76,0.00019494,2]
[388507840,1759223439824,-2456.08,0.00019494,2]
[388507841,1759223439833,-889.36,0.00019494,2]
[388507842,1759223439843,-500.0,0.00019494,2]
[388507843,1759223439852,-553.53,0.00019494,2]
[388507844,1759223439861,-1161.46,0.00019494,2]
[388507845,1759223439871,-1754.27,0.00019494,2]
[388507846,1759223439881,-500.0,0.00019494,2]
[388507847,1759223439890,-500.0,0.00019494,2]
[388507848,1759223439900,-1452.95,0.00019494,2]
[388507849,1759223439909,-704.34,0.00019494,2]
[388507850,1759223439919,-888.37,0.00019494,2]
[388507851,1759223439929,-925.29,0.00019494,2]
[388507852,1759223439938,-1521.04,0.00019494,2]
[388507853,1759223439949,-1731.61,0.00019494,2]
[388507854,1759223439959,-768.18,0.00019494,2]
[388507855,1759223439968,-1066.34,0.00019494,2]
[388507856,1759223439978,-2477.54,0.00019494,2]
[388507857,1759223439987,-500.0,0.00019494,2]
[388507858,1759223439996,-679.1,0.00019494,2]
[388507859,1759223440006,-1258.64,0.00019494,2]
[388507860,1759223440015,-500.0,0.00019494,2]
[388507861,1759223440026,-2899.18,0.00019494,2]
[388507863,1759223440035,-955.39,0.00019494,2]
[388507864,1759223440045,-969.94,0.00019494,2]
[388507866,1759223440055,-500.0,0.00019494,2]
[388507868,1759223440065,-500.0,0.00019494,2]
[388507870,1759223440074,-500.0,0.00019494,2]
[388507872,1759223440083,-432.78182305,0.00019494,2]
[388507873,1759223440093,-500.0,0.00019494,2]
[388507874,1759223440103,-500.0,0.00019494,2]
[388507875,1759223440112,-610.79,0.00019494,2]
[388507876,1759223440121,-500.0,0.00019494,2]
[388507877,1759223440130,-500.0,0.00019494,2]
[388507878,1759223440140,-671.17,0.00019494,2]
[388507879,1759223440149,-1337.06,0.00019494,2]
[388507880,1759223440158,-500.0,0.00019494,2]
[388507881,1759223440168,-500.0,0.00019494,2]
[388507882,1759223440183,-2556.86,0.00019494,2]
[388507883,1759223440193,-151.575418,0.00019494,2]
[388507884,1759223440204,-1314.04,0.00019494,2]
[388507885,1759223440213,-500.0,0.00019494,2]
[388507887,1759223440223,-573.58,0.00019494,2]
[388507888,1759223440232,-5541.32,0.00019494,2]
[388507890,1759223440242,-500.0,0.00019494,2]
[388507892,1759223440251,-500.0,0.00019494,2]
[388507893,1759223440260,-500.0,0.00019494,2]
[388507894,1759223440269,-826.97,0.00019494,2]
[388507895,1759223440278,-896.5,0.00019494,2]
[388507896,1759223440287,-500.0,0.00019494,2]
[388507897,1759223440296,-500.0,0.00019494,2]
[388507898,1759223440309,-797.39,0.00019494,2]
[388507899,1759223440318,-578.49,0.00019494,2]
[388507900,1759223440327,-3852.41,0.00019494,2]
[388507901,1759223440337,-500.0,0.00019494,2]
[388507902,1759223440346,-500.0,0.00019494,2]
[388507903,1759223440355,-500.0,0.00019494,2]
[388507904,1759223440364,-500.0,0.00019494,2]
[388507905,1759223440373,-500.0,0.00019494,2]
[388507906,1759223440383,-500.0,0.00019494,2]
[388507907,1759223440392,-500.0,0.00019494,2]
[388507908,1759223440401,-804.55,0.00019494,2]
[388507909,1759223440410,-2555.64,0.00019494,2]
[388507910,1759223440420,-500.0,0.00019494,2]
[388507911,1759223440429,-2210.12,0.00019494,2]
[388507912,1759223440438,-2524.72,0.00019494,2]
[388507913,1759223440447,-1937.03,0.00019494,2]
[388507914,1759223440457,-500.0,0.00019494,2]
[388507915,1759223440467,-1252.7,0.00019494,2]
[388507916,1759223440476,-500.0,0.00019494,2]
[388507917,1759223440486,-500.0,0.00019494,2]
[388507918,1759223440495,-6551.99,0.00019494,2]
[388507919,1759223440506,-500.0,0.00019494,2]
[388507920,1759223440515,-646.22,0.00019494,2]
[388507921,1759223440524,-594.57329606,0.00019494,2]
[388507922,1759223440534,-500.0,0.00019494,2]
[388507923,1759223440542,-500.0,0.00019494,2]
[388507924,1759223440551,-3844.52,0.00019494,2]
[388507925,1759223440561,-3577.25,0.00019494,2]
[388507926,1759223440570,-883.05,0.00019494,2]
[388507927,1759223440580,-500.0,0.00019494,2]
[388507928,1759223440590,-500.0,0.00019494,2]
[388507929,1759223440599,-1713.9,0.00019494,2]
[388507930,1759223440608,-889.36,0.00019494,2]
[388507931,1759223440621,-500.0,0.00019494,2]
[388507932,1759223440630,-5187.25,0.00019494,2]
[388507933,1759223440639,-500.0,0.00019494,2]
[388507934,1759223440649,-500.0,0.00019494,2]
[388507935,1759223440658,-500.0,0.00019494,2]
[388507936,1759223440668,-4689.5,0.00019494,2]
[388507937,1759223440678,-502.53,0.00019494,2]
[388507938,1759223440688,-534.22384938,0.00019494,2]
[388507939,1759223440697,-1104.84,0.00019494,2]
[388507940,1759223440707,-500.0,0.00019494,2]
[388507941,1759223440716,-500.0,0.00019494,2]
[388507942,1759223440725,-1742.79,0.00019494,2]
[388507943,1759223440734,-500.0,0.00019494,2]
[388507944,1759223440744,-5304.39,0.00019494,2]
[388507945,1759223440753,-500.0,0.00019494,2]
[388507946,1759223440762,-500.0,0.00019494,2]
[388507947,1759223440772,-2478.62,0.00019494,2]
[388507948,1759223440781,-500.0,0.00019494,2]
[388507949,1759223440791,-500.0,0.00019494,2]
[388507950,1759223440800,-500.0,0.00019494,2]
[388507951,1759223440809,-1938.98,0.00019494,2]
[388507952,1759223440819,-2910.22,0.00019494,2]
[388507953,1759223440828,-959.13,0.00019494,2]
[388507954,1759223440838,-500.0,0.00019494,2]
[388507955,1759223440847,-4754.64,0.00019494,2]
[388507956,1759223440856,-500.0,0.00019494,2]
[388507957,1759223440865,-500.0,0.00019494,2]
[388507958,1759223440875,-500.0,0.00019494,2]
[388507959,1759223440884,-545.75156802,0.00019494,2]
[388507960,1759223440894,-1705.93,0.00019494,2]
[388507961,1759223440903,-500.0,0.00019494,2]
[388507962,1759223440912,-500.0,0.00019494,2]
[388507963,1759223440921,-3179.7,0.00019494,2]
[388507964,1759223440930,-500.0,0.00019494,2]
[388507965,1759223440939,-500.0,0.00019494,2]
[388507966,1759223440948,-650.82,0.00019494,2]
[388507967,1759223440957,-500.0,0.00019494,2]
[388507968,1759223440967,-5638.89,0.00019494,2]
[388507969,1759223440976,-4352.15,0.00019494,2]
[388507970,1759223440986,-1616.17,0.00019494,2]
[388507971,1759223440996,-500.0,0.00019494,2]
[388507972,1759223441006,-3574.34,0.00019494,2]
[388507973,1759223441016,-500.0,0.00019494,2]
[388507974,1759223441025,-1178.77,0.00019494,2]
[388507975,1759223441036,-500.0,0.00019494,2]
[388507976,1759223441045,-1018.94,0.00019494,2]
[388507977,1759223441055,-2924.81,0.00019494,2]
[388507978,1759223441064,-500.0,0.00019494,2]
[388507979,1759223441073,-500.0,0.00019494,2]
[388507980,1759223441082,-500.0,0.00019494,2]
[388507981,1759223441091,-500.0,0.00019494,2]
[388507982,1759223441100,-500.0,0.00019494,2]
[388507983,1759223441109,-4341.73,0.00019494,2]
[388507984,1759223441119,-500.0,0.00019494,2]
[388507985,1759223441128,-2851.64,0.00019494,2]
[388507986,1759223441146,-500.0,0.00019494,2]
[388507987,1759223441155,-500.0,0.00019494,2]
[388507988,1759223441165,-526.76,0.00019494,2]
[388507989,1759223441175,-1132.59,0.00019494,2]
[388507990,1759223441184,-500.0,0.00019494,2]
[388507991,1759223441194,-500.0,0.00019494,2]
[388507992,1759223441203,-2592.17,0.00019494,2]
[388507993,1759223441213,-1831.11,0.00019494,2]
[388507994,1759223441222,-500.0,0.00019494,2]
[388507995,1759223441232,-1004.84,0.00019494,2]
[388507996,1759223441241,-769.96,0.00019494,2]
[388507997,1759223441251,-500.0,0.00019494,2]
[388507998,1759223441260,-4746.14,0.00019494,2]
[388507999,1759223441269,-1934.4,0.00019494,2]
[388508000,1759223441278,-500.0,0.00019494,2]
[388508001,1759223441287,-1602.83,0.00019494,2]
[388508002,1759223441296,-578.62,0.00019494,2]
[388508003,1759223441305,-500.0,0.00019494,2]
[388508004,1759223441315,-3137.39,0.00019494,2]
[388508005,1759223441324,-611.07,0.00019494,2]
[388508006,1759223441333,-1121.46,0.00019494,2]
[388508007,1759223441343,-500.0,0.00019494,2]
[388508008,1759223441352,-1721.12,0.00019494,2]
[388508009,1759223441362,-500.0,0.00019494,2]
[388508010,1759223441372,-500.0,0.00019494,2]
[388508011,1759223441385,-2043.87,0.00019494,2]
[388508012,1759223441394,-1336.28,0.00019494,2]
[388508013,1759223441403,-500.0,0.00019494,2]
[388508014,1759223441412,-500.0,0.00019494,2]
[388508015,1759223441421,-930.3,0.00019494,2]
[388508016,1759223441431,-500.0,0.00019494,2]
[388508017,1759223441440,-500.0,0.00019494,2]
[388508018,1759223441449,-500.0,0.00019494,2]
[388508019,1759223441459,-648.29,0.00019494,2]
[388508020,1759223441468,-4072.82,0.00019494,2]
[388508021,1759223441478,-500.0,0.00019494,2]
[388508022,1759223441488,-500.0,0.00019494,2]
[388508023,1759223441497,-500.0,0.00019494,2]
[388508024,1759223441506,-600.95,0.00019494,2]
[388508025,1759223441515,-537.14,0.00019494,2]
[388508026,1759223441524,-864.74,0.00019494,2]
[388508027,1759223441534,-500.0,0.00019494,2]
[388508028,1759223441544,-1206.9,0.00019494,2]
[388508029,1759223441554,-1332.4,0.00019494,2]
[388508030,1759223441563,-500.0,0.00019494,2]
[388508031,1759223441573,-500.0,0.00019494,2]
[388508032,1759223441582,-676.84,0.00019494,2]
[388508033,1759223441591,-710.61,0.00019494,2]
[388508034,1759223441601,-500.0,0.00019494,2]
[388508035,1759223441610,-500.0,0.00019494,2]
[388508036,1759223441624,-2656.3,0.00019494,2]
[388508037,1759223441633,-500.0,0.00019494,2]
[388508038,1759223441642,-500.0,0.00019494,2]
[388508039,1759223441652,-500.0,0.00019494,2]
[388508040,1759223441663,-500.0,0.00019494,2]
[388508041,1759223441672,-340.14489483,0.00019494,2]
[388508042,1759223441681,-500.0,0.00019494,2]
[388508043,1759223441690,-500.0,0.00019494,2]
[388508044,1759223441702,-1195.58,0.00019494,2]
[388508045,1759223441711,-500.0,0.00019494,2]
[388508046,1759223441721,-875.02,0.00019494,2]
[388508047,1759223441730,-500.0,0.00019494,2]
[388508048,1759223441739,-545.04,0.00019494,2]
[388508049,1759223441749,-500.0,0.00019494,2]
[388508050,1759223441758,-500.0,0.00019494,2]
[388508051,1759223441767,-500.0,0.00019494,2]
[388508052,1759223441777,-2855.27,0.00019494,2]
[388508053,1759223441787,-500.0,0.00019494,2]
[388508054,1759223441796,-1558.13,0.00019494,2]
[388508055,1759223441806,-500.0,0.00019494,2]